bitfinex/quotes_SOLUSD_20241202
["timestamp","ask_amount","ask_price","bid_price","bid_amount"]
[1733160607249,30.75258269,223.54,223.53,107.93259231]
[1733160609955,25.75258269,223.54,223.53,107.93259231]
[1733160610131,30.75258269,223.54,223.53,107.93259231]
[1733160612333,25.75258269,223.54,223.53,107.93259231]
[1733160613529,7.83050769,223.54,223.53,107.93259231]
[1733160615554,8.98209024,223.67,223.53,107.93259231]
[1733160615555,5.0,223.59,223.53,107.93259231]
[1733160615755,2.84950524,223.57,223.53,107.93259231]
[1733160616053,5.0,223.59,223.53,107.93259231]
[1733160616350,5.0,223.65,223.55,21.14723127]
[1733160616728,5.0,223.62,223.53,107.93259231]
[1733160617151,5.0,223.6,223.53,107.93259231]
[1733160617849,25.0,223.6,223.53,107.93259231]
[1733160618160,25.0,223.64,223.55,21.14723127]
[1733160618360,20.0,223.64,223.55,21.14723127]
[1733160619440,11.82849021,223.67,223.57,21.14723127]
[1733160619642,11.82849021,223.67,223.59,21.14723127]
[1733160619856,5.0,223.66,223.54,21.14723127]
[1733160620254,5.0,223.66,223.53,107.93259231]
[1733160620433,5.0,223.66,223.54,21.14723127]
[1733160620635,20.0,223.64,223.54,21.14723127]
[1733160620835,20.0,223.64,223.56,21.14723127]
[1733160622435,20.0,223.64,223.58,21.14723127]
[1733160622631,8.98209024,223.67,223.6,21.14723127]
[1733160622830,8.98209024,223.67,223.54,23.776884]
[1733160623436,8.98209024,223.67,223.55,21.14723127]
[1733160623838,5.0,223.66,223.53,129.07982358]
[1733160624139,5.0,223.66,223.53,107.93259231]
[1733160624444,20.0,223.64,223.53,129.07982358]
[1733160625965,20.0,223.64,223.53,107.93259231]
[1733160626149,20.0,223.64,223.53,129.07982358]
[1733160626564,20.0,223.63,223.53,107.93259231]
[1733160626946,25.0,223.59,223.53,107.93259231]
[1733160627148,20.0,223.6,223.53,107.93259231]
[1733160627667,20.0,223.61,223.53,29.42515509]
[1733160628266,5.0,223.59,223.53,29.42515509]
[1733160629363,20.0,223.6,223.53,29.42515509]
[1733160629665,20.0,223.62,223.53,29.42515509]
[1733160630043,20.0,223.62,223.54,12.357]
[1733160631955,8.98209024,223.67,223.54,33.50423127]
[1733160632150,8.98209024,223.67,223.54,12.357]
[1733160632151,5.0,223.66,223.54,12.357]
[1733160632863,11.77175533,223.67,223.54,12.357]
[1733160633565,20.0,223.64,223.55,36.99399193]
[1733160633745,11.77175533,223.67,223.57,13.21710793]
[1733160634253,5.0,223.76,223.6,23.776884]
[1733160634455,5.0,223.76,223.6,37.146884]
[1733160634659,5.0,223.77,223.6,23.776884]
[1733160635369,10.0,223.73,223.55,23.776884]
[1733160635543,5.0,223.71,223.55,23.776884]
[1733160635745,20.0,223.7,223.55,23.776884]
[1733160635966,20.0,223.7,223.57,23.776884]
[1733160636162,5.0,223.75,223.55,44.9278518]
[1733160636163,20.0,223.72,223.55,44.9278518]
[1733160636368,20.0,223.74,223.55,44.9278518]
[1733160636665,10.0,223.77,223.59,21.1509678]
[1733160636839,10.0,223.77,223.6,23.776884]
[1733160637041,12.76406633,223.77,223.6,23.776884]
[1733160637244,12.76406633,223.77,223.58,23.776884]
[1733160637967,20.0,223.74,223.59,21.1509678]
[1733160638178,5.0,223.76,223.6,23.776884]
[1733160638470,5.0,223.76,223.59,45.4531]
[1733160638471,5.0,223.74,223.59,45.4531]
[1733160638666,10.0,223.76,223.6,23.776884]
[1733160638860,2.76406633,223.77,223.6,23.776884]
[1733160639253,5.0,223.78,223.6,23.776884]
[1733160639466,8.86229822,223.79,223.59,66.6040678]
[1733160639467,5.0,223.74,223.59,45.4531]
[1733160639863,25.0,223.76,223.59,45.4531]
[1733160640366,10.0,223.74,223.59,45.4531]
[1733160640673,20.0,223.71,223.59,45.4531]
[1733160640869,20.0,223.69,223.59,45.4531]
[1733160641456,25.0,223.73,223.59,45.4531]
[1733160641651,5.0,223.68,223.59,45.4531]
[1733160642060,20.0,223.67,223.59,45.4531]
[1733160642246,20.0,223.65,223.59,45.4531]
[1733160642949,20.0,223.67,223.59,45.4531]
[1733160643155,25.0,223.71,223.59,45.4531]
[1733160643474,20.0,223.63,223.53,29.42515509]
[1733160643773,20.0,223.62,223.53,29.42515509]
[1733160643962,20.0,223.63,223.53,29.42515509]
[1733160644475,20.0,223.64,223.53,29.42515509]
[1733160644681,20.0,223.66,223.53,29.42515509]
[1733160644978,25.0,223.66,223.53,29.42515509]
[1733160645475,20.0,223.61,223.53,29.42515509]
[1733160646058,20.0,223.63,223.53,29.42515509]
[1733160646274,20.0,223.64,223.53,29.42515509]
[1733160646775,20.0,223.66,223.54,43.6838]
[1733160647376,5.0,223.68,223.54,43.6838]
[1733160647377,20.0,223.65,223.54,43.6838]
[1733160647991,20.0,223.67,223.54,43.6838]
[1733160650772,25.0,223.66,223.53,29.42515509]
[1733160651109,20.0,223.63,223.53,29.42515509]
[1733160651976,20.0,223.64,223.53,29.42515509]
[1733160652994,20.0,223.67,223.54,42.8132]
[1733160653578,20.0,223.65,223.54,42.8132]
[1733160653782,20.0,223.65,223.53,29.42515509]
[1733160653986,20.0,223.64,223.53,29.42515509]
[1733160654799,20.0,223.66,223.53,29.42515509]
[1733160655006,20.0,223.64,223.53,29.42515509]
[1733160655673,20.0,223.63,223.53,29.42515509]
[1733160655875,23.776884,223.62,223.53,29.42515509]
[1733160656071,20.0,223.56,223.53,29.42515509]
[1733160657603,20.0,223.55,223.43,108.34111651]
[1733160658897,20.0,223.53,223.43,108.34111651]
[1733160659094,20.0,223.51,223.43,108.34111651]
[1733160659494,20.0,223.51,223.43,107.84111651]
[1733160660115,20.0,223.49,223.43,107.84111651]
[1733160660710,10.0,223.52,223.43,107.84111651]
[1733160660711,20.0,223.51,223.43,107.84111651]
[1733160660910,28.776884,223.5,223.43,107.84111651]
[1733160661075,20.0,223.47,223.43,107.84111651]
[1733160661699,20.0,223.48,223.43,107.84111651]
[1733160662292,28.776884,223.47,223.43,107.84111651]
[1733160662497,20.0,223.44,223.43,107.84111651]
[1733160663191,2.85874304,223.52,223.43,107.84111651]
[1733160663505,5.0,223.58,223.43,107.84111651]
[1733160663693,5.0,223.59,223.43,107.84111651]
[1733160663895,5.0,223.55,223.43,107.84111651]
[1733160664099,5.0,223.53,223.43,107.84111651]
[1733160664301,137.8,223.54,223.43,107.84111651]
[1733160665045,20.0,223.51,223.43,107.84111651]
[1733160665393,20.0,223.53,223.43,107.84111651]
[1733160665588,20.0,223.55,223.43,107.84111651]
[1733160665905,20.0,223.51,223.43,107.84111651]
[1733160666295,20.0,223.55,223.43,107.84111651]
[1733160666491,5.0,223.58,223.43,107.84111651]
[1733160667091,5.0,223.56,223.43,107.84111651]
[1733160667588,10.0,223.56,223.43,107.84111651]
[1733160667908,20.0,223.52,223.43,107.84111651]
[1733160668099,20.0,223.48,223.43,107.84111651]
[1733160668504,23.776884,223.47,223.43,40.23838634]
[1733160668708,20.0,223.44,223.43,40.23838634]
[1733160669093,48.776884,223.44,223.43,31.37097802]
[1733160669492,53.776884,223.44,223.43,31.37097802]
[1733160669700,53.776884,223.44,223.43,22.22693861]
[1733160670009,20.0,223.39,223.3,12.2254]
[1733160670399,5.0,223.37,223.3,12.2254]
[1733160670604,25.0,223.37,223.28,30.4848]
[1733160670802,25.0,223.35,223.28,30.4848]
[1733160671018,25.0,223.35,223.33,64.02687658]
[1733160671193,5.0,223.35,223.33,64.02687658]
[1733160671392,20.0,223.34,223.33,64.02687658]
[1733160671611,20.0,223.34,223.24,120.71349231]
[1733160671926,20.0,223.38,223.24,120.71349231]
[1733160672102,20.0,223.36,223.24,120.71349231]
[1733160672632,2.79146792,223.4,223.24,120.71349231]
[1733160672929,5.0,223.48,223.26,30.7408]
[1733160673229,5.0,223.48,223.27,57.11170909]
[1733160673405,5.0,223.5,223.27,57.11170909]
[1733160673727,5.0,223.54,223.31,57.29590909]
[1733160673906,5.0,223.55,223.34,44.2256]
[1733160674226,5.0,223.53,223.34,44.2256]
[1733160675124,147.8,223.56,223.35,23.776884]
[1733160675300,5.0,223.53,223.34,44.2256]
[1733160675826,10.0,223.55,223.34,44.2256]
[1733160676201,5.0,223.55,223.34,44.2256]
[1733160676901,5.0,223.53,223.34,44.2256]
[1733160677697,20.0,223.52,223.34,44.2256]
[1733160678929,20.0,223.51,223.34,44.2256]
[1733160679106,20.0,223.5,223.34,44.2256]
[1733160680074,20.0,223.46,223.34,44.2256]
[1733160680217,10.0,223.44,223.34,44.2256]
[1733160680530,25.0,223.4,223.34,44.2256]
[1733160680701,20.0,223.36,223.34,44.2256]
[1733160681032,20.0,223.35,223.34,44.2256]
[1733160681239,20.0,223.35,223.28,44.6636]
[1733160681425,20.0,223.31,223.24,107.80769231]
[1733160681607,20.0,223.27,223.24,107.80769231]
[1733160682725,22.76093769,223.27,223.24,107.80769231]
[1733160682910,20.0,223.26,223.24,107.80769231]
[1733160684339,5.0,223.33,223.24,107.80769231]
[1733160684511,2.84180779,223.29,223.24,107.80769231]
[1733160684712,137.8,223.32,223.24,107.80769231]
[1733160685549,5.0,223.31,223.24,107.80769231]
[1733160685834,5.0,223.25,223.24,16.60398072]
[1733160686031,5.0,223.25,223.2,0.5334242]
[1733160686231,23.776884,223.24,223.2,0.5334242]
[1733160686440,20.0,223.21,223.2,0.5334242]
[1733160690447,2.82561108,223.25,223.2,0.5334242]
[1733160690936,11.61158369,223.31,223.2,0.5334242]
[1733160692138,20.0,223.28,223.2,0.5334242]
[1733160695014,11.61158369,223.31,223.2,0.5334242]
[1733160697841,20.0,223.28,223.2,0.5334242]
[1733160698425,2.85984401,223.31,223.2,0.5334242]
[1733160698849,137.8,223.38,223.2,0.5334242]
[1733160699052,137.8,223.38,223.23,21.22192509]
[1733160699053,2.85442429,223.38,223.23,21.22192509]
[1733160699257,2.85442429,223.38,223.22,28.776884]
[1733160699258,2.85442429,223.38,223.27,52.30312509]
[1733160699557,2.85681599,223.39,223.27,52.30312509]
[1733160699729,137.8,223.47,223.28,12.4001]
[1733160700047,17.932212,223.42,223.29,23.776884]
[1733160700255,137.8,223.5,223.29,23.776884]
[1733160700420,137.8,223.5,223.31,21.22192509]
[1733160700624,2.81840122,223.51,223.33,33.62202509]
[1733160700825,3.24,223.53,223.33,12.4001]
[1733160701042,17.930548,223.48,223.33,12.4001]
[1733160701848,17.930548,223.48,223.33,33.62202509]
[1733160702047,6.00755814,223.53,223.34,23.776884]
[1733160702359,6.00755814,223.53,223.33,12.4001]
[1733160702540,17.926696,223.52,223.33,12.4001]
[1733160703064,17.926696,223.52,223.34,28.776884]
[1733160703266,17.926696,223.52,223.38,12.8622]
[1733160703552,2.76755814,223.53,223.38,12.8622]
[1733160703961,5.0,223.62,223.38,12.8622]
[1733160703962,5.0,223.59,223.38,12.8622]
[1733160704624,17.926297,223.52,223.39,30.8909]
[1733160704827,137.8,223.63,223.41,23.776884]
[1733160705035,17.920799,223.58,223.41,23.776884]
[1733160705840,17.920799,223.58,223.44,30.8909]
[1733160706158,3.24,223.62,223.46,12.8171]
[1733160706527,137.8,223.61,223.46,12.8171]
[1733160707035,137.8,223.6,223.46,12.8171]
[1733160707242,20.0,223.57,223.46,12.8171]
[1733160708038,20.0,223.52,223.46,12.8171]
[1733160708749,20.0,223.53,223.46,12.8171]
[1733160709655,22.82927805,223.53,223.46,12.8171]
[1733160710731,20.0,223.49,223.44,30.8909]
[1733160711254,20.0,223.49,223.31,30.286]
[1733160711640,20.0,223.49,223.33,5.0]
[1733160712136,20.0,223.49,223.31,51.50792509]
[1733160712335,20.0,223.45,223.31,30.286]
[1733160712734,137.8,223.51,223.31,30.286]
[1733160712931,20.0,223.48,223.31,30.286]
[1733160713746,20.0,223.48,223.32,5.0]
[1733160713955,22.82927805,223.53,223.35,32.7374]
[1733160715462,2.82927805,223.53,223.35,53.95932509]
[1733160715640,137.8,223.57,223.35,53.95932509]
[1733160715840,137.8,223.57,223.35,32.7374]
[1733160716459,20.0,223.54,223.35,32.7374]
[1733160716844,20.0,223.5,223.35,32.7374]
[1733160719461,20.0,223.54,223.35,32.7374]
[1733160719669,146.58623878,223.58,223.36,42.0912]
[1733160719863,146.58623878,223.58,223.38,42.0912]
[1733160720062,149.40472888,223.58,223.38,42.0912]
[1733160720262,11.60472888,223.58,223.41,30.0057]
[1733160720456,2.8184901,223.58,223.43,32.6186]
[1733160720840,17.922744,223.61,223.44,13.0124]
[1733160721037,17.922744,223.61,223.45,32.6186]
[1733160721236,17.922744,223.61,223.46,13.0124]
[1733160721542,20.67713258,223.61,223.48,12.0687]
[1733160721751,2.75438858,223.61,223.48,12.0687]
[1733160722252,13.60848,223.61,223.48,12.0687]
[1733160724446,21.97,223.49,223.48,12.0687]
[1733160725095,20.0,223.46,223.39,45.1611]
[1733160726044,21.97,223.49,223.39,45.1611]
[1733160726250,20.0,223.46,223.39,45.1611]
[1733160727167,21.97,223.49,223.41,32.9964]
[1733160728369,20.0,223.46,223.41,32.9964]
[1733160729479,21.97,223.49,223.41,32.9964]
[1733160732479,20.0,223.46,223.41,32.9964]
[1733160736263,20.0,223.46,223.35,31.7831]
[1733160737178,279.77,223.49,223.35,31.7831]
[1733160737484,141.97,223.49,223.35,31.7831]
[1733160738077,141.97,223.49,223.35,27.7031]
[1733160739068,141.97,223.49,223.36,12.5299]
[1733160739990,141.97,223.49,223.37,23.776884]
[1733160740188,141.97,223.49,223.38,21.22192509]
[1733160740363,141.97,223.49,223.4,12.6509]
[1733160740860,141.97,223.49,223.41,23.776884]
[1733160741055,141.97,223.49,223.42,30.4977]
[1733160741576,141.97,223.49,223.43,23.776884]
[1733160741784,141.97,223.49,223.44,12.0752]
[1733160741959,28.6368,223.49,223.46,21.22192509]
[1733160742161,2.85561743,223.6,223.48,26.22192509]
[1733160742490,24.073,223.7,223.52,21.22192509]
[1733160742667,2.86098089,223.65,223.53,46.0485]
[1733160742864,13.60848,223.67,223.56,21.22192509]
[1733160743071,2.8056526,223.7,223.54,23.776884]
[1733160743257,2.8056526,223.7,223.53,46.0485]
[1733160743462,17.90958,223.71,223.53,46.0485]
[1733160743663,17.90958,223.71,223.53,72.27042509]
[1733160744277,17.90958,223.71,223.53,67.27042509]
[1733160744466,17.90958,223.71,223.53,72.27042509]
[1733160744663,17.90958,223.71,223.55,21.22192509]
[1733160745694,17.90958,223.71,223.54,23.776884]
[1733160746075,17.90958,223.71,223.53,67.27042509]
[1733160746390,20.0,223.68,223.53,46.0485]
[1733160746980,0.09787027,223.7,223.53,67.27042509]
[1733160748570,0.09787027,223.7,223.5,5.0]
[1733160748788,20.0,223.66,223.45,5.0]
[1733160749003,20.0,223.66,223.5,21.22192509]
[1733160749695,0.09787027,223.7,223.5,21.22192509]
[1733160749696,20.0,223.68,223.52,21.22192509]
[1733160749900,20.0,223.68,223.51,44.5869]
[1733160750265,20.0,223.68,223.52,23.776884]
[1733160750468,20.0,223.68,223.52,44.99880909]
[1733160750891,20.0,223.68,223.51,44.5869]
[1733160751470,0.09787027,223.7,223.52,21.22192509]
[1733160752607,0.09787027,223.7,223.54,21.22192509]
[1733160752796,2.92324338,223.7,223.52,23.776884]
[1733160752987,2.92324338,223.7,223.54,21.22192509]
[1733160753303,0.09787027,223.7,223.56,21.22192509]
[1733160753890,0.09787027,223.7,223.57,23.776884]
[1733160754488,2.92945175,223.7,223.58,21.22192509]
[1733160755000,0.09787027,223.7,223.59,23.776884]
[1733160755590,0.09787027,223.7,223.6,21.22192509]
[1733160756296,0.09787027,223.7,223.63,33.91412509]
[1733160756868,0.09787027,223.7,223.58,23.776884]
[1733160757089,0.09787027,223.7,223.58,44.99880909]
[1733160757482,0.09787027,223.7,223.58,23.776884]
[1733160757797,0.09787027,223.7,223.57,23.776884]
[1733160759501,0.09787027,223.7,223.56,30.5499]
[1733160760100,20.0,223.66,223.5,31.22192509]
[1733160760801,20.0,223.66,223.52,21.22192509]
[1733160760979,20.0,223.66,223.5,31.22192509]
[1733160761179,20.0,223.66,223.48,21.22192509]
[1733160761700,20.0,223.66,223.49,5.0]
[1733160761903,20.0,223.66,223.52,26.22192509]
[1733160762073,20.0,223.66,223.54,21.22192509]
[1733160762278,32.8671,223.69,223.56,21.22192509]
[1733160762471,0.09787027,223.65,223.56,21.22192509]
[1733160763203,0.09787027,223.65,223.57,23.776884]
[1733160764077,0.09787027,223.65,223.54,5.0]
[1733160764284,0.09787027,223.65,223.55,23.776884]
[1733160765395,0.09787027,223.65,223.57,28.776884]
[1733160766079,0.09787027,223.65,223.57,23.776884]
[1733160766284,0.09787027,223.65,223.48,26.22192509]
[1733160766497,0.09787027,223.65,223.49,4.4683616]
[1733160766805,0.09787027,223.65,223.5,21.22192509]
[1733160767002,0.09787027,223.65,223.52,21.22192509]
[1733160767516,0.09787027,223.65,223.53,5.0]
[1733160767675,0.09787027,223.65,223.54,21.22192509]
[1733160767881,0.09787027,223.65,223.55,5.0]
[1733160768205,0.09787027,223.65,223.55,23.776884]
[1733160769079,0.09787027,223.65,223.57,23.776884]
[1733160769703,0.09787027,223.65,223.54,23.776884]
[1733160770010,0.09787027,223.65,223.56,23.776884]
[1733160770217,0.09787027,223.65,223.55,23.776884]
[1733160770393,0.09787027,223.65,223.47,43.99482509]
[1733160770699,0.09787027,223.65,223.47,57.42482509]
[1733160770913,12.6519,223.63,223.47,18.43]
[1733160771201,20.0,223.6,223.47,18.43]
[1733160771511,20.0,223.6,223.47,23.43]
[1733160772006,20.0,223.6,223.47,18.43]
[1733160772312,20.0,223.6,223.42,21.22192509]
[1733160772614,20.0,223.6,223.41,22.5577]
[1733160772782,20.0,223.6,223.41,25.31069002]
[1733160772977,20.0,223.6,223.43,5.0]
[1733160773201,20.0,223.6,223.46,21.22192509]
[1733160773405,20.0,223.6,223.44,21.22192509]
[1733160773609,20.0,223.6,223.45,23.776884]
[1733160774289,20.0,223.6,223.48,23.776884]
[1733160774603,12.6519,223.63,223.51,23.776884]
[1733160775006,30.9612,223.64,223.53,23.776884]
[1733160776120,30.9612,223.64,223.54,23.776884]
[1733160776303,30.9612,223.64,223.52,23.776884]
[1733160776729,30.9612,223.64,223.51,23.776884]
[1733160777017,20.0,223.61,223.48,23.776884]
[1733160777396,12.42,223.6,223.43,9.477]
[1733160777594,20.0,223.57,223.43,4.477]
[1733160777913,20.0,223.57,223.44,5.0]
[1733160778213,20.0,223.57,223.42,21.22192509]
[1733160778427,20.0,223.57,223.43,13.43]
[1733160778608,0.09787027,223.56,223.43,13.43]
[1733160779095,0.09787027,223.56,223.4,21.22192509]
[1733160779296,0.09787027,223.56,223.4,34.65192509]
[1733160779511,43.3386,223.55,223.36,5.89256082]
[1733160779697,20.0,223.52,223.35,26.22192509]
[1733160779908,20.0,223.52,223.33,26.22192509]
[1733160780218,20.0,223.52,223.34,5.0]
[1733160780424,20.0,223.52,223.31,4.477]
[1733160780631,20.0,223.44,223.27,10.0]
[1733160781499,20.0,223.44,223.27,31.22192509]
[1733160781697,20.0,223.44,223.29,21.22192509]
[1733160781999,20.0,223.44,223.27,10.0]
[1733160782321,20.0,223.44,223.27,5.0]
[1733160782529,20.0,223.44,223.26,5.0]
[1733160783719,20.0,223.44,223.23,34.65192509]
[1733160783921,20.0,223.44,223.26,5.0]
[1733160785207,20.0,223.44,223.27,23.776884]
[1733160785510,20.0,223.4,223.2,0.5334242]
[1733160785707,33.0878,223.39,223.2,0.5334242]
[1733160785913,33.0878,223.34,223.2,0.5334242]
[1733160788727,20.0,223.31,223.2,0.5334242]
[1733160789028,13.2203,223.3,223.2,0.5334242]
[1733160789333,31.5028,223.26,223.2,0.5334242]
[1733160792224,13.2203,223.3,223.2,24.3103082]
[1733160792403,13.2203,223.3,223.2,0.5334242]
[1733160793603,30.3228,223.32,223.24,23.776884]
[1733160793810,12.0649,223.36,223.26,23.776884]
[1733160794014,12.0649,223.36,223.28,23.776884]
[1733160794219,31.9374,223.38,223.28,23.776884]
[1733160794697,0.09787027,223.31,223.28,23.776884]
[1733160794897,0.09787027,223.31,223.26,23.776884]
[1733160795206,0.09787027,223.31,223.28,23.776884]
[1733160795511,0.09787027,223.31,223.22,21.22192509]
[1733160795720,0.09787027,223.31,223.27,23.776884]
[1733160796024,0.09787027,223.31,223.29,23.776884]
[1733160796233,0.09787027,223.31,223.3,21.22192509]
[1733160796438,0.09787027,223.31,223.3,72.11372324]
[1733160796725,0.09787027,223.31,223.3,72.23921324]
[1733160796907,12.7965,223.48,223.4,21.22192509]
[1733160797102,32.7162,223.51,223.4,21.22192509]
[1733160797507,32.7162,223.51,223.42,21.22192509]
[1733160798220,32.7162,223.51,223.4,21.22192509]
[1733160798419,32.7162,223.51,223.42,21.22192509]
[1733160798603,32.5226,223.59,223.44,21.22192509]
[1733160798801,32.5226,223.59,223.46,21.22192509]
[1733160799004,32.5226,223.59,223.47,23.776884]
[1733160799232,32.5226,223.59,223.51,23.776884]
[1733160799413,32.1704,223.67,223.55,23.776884]
[1733160799804,32.1704,223.67,223.56,21.22192509]
[1733160800004,32.1704,223.67,223.57,23.776884]
[1733160800712,8.69113389,223.8,223.6,17.14190509]
[1733160800912,30.9551,223.74,223.59,23.776884]
[1733160801101,30.9551,223.74,223.53,23.776884]
[1733160801311,30.9551,223.74,223.51,23.776884]
[1733160802134,30.9551,223.74,223.46,21.22192509]
[1733160802342,20.0,223.71,223.46,21.22192509]
[1733160802517,20.0,223.7,223.46,21.22192509]
[1733160802826,20.0,223.7,223.48,21.22192509]
[1733160803015,67.017084,223.7,223.44,21.22192509]
[1733160803213,12.086,223.61,223.38,21.22192509]
[1733160803423,20.0,223.58,223.38,21.22192509]
[1733160803607,20.0,223.58,223.43,21.22192509]
[1733160804319,30.0605,223.57,223.37,33.76242509]
[1733160804518,20.0,223.54,223.37,21.22192509]
[1733160805133,20.0,223.5,223.31,12.2493]
[1733160805329,12.6063,223.53,223.28,21.22192509]
[1733160805330,20.0,223.46,223.28,21.22192509]
[1733160805939,20.0,223.46,223.3,21.22192509]
[1733160806812,20.0,223.46,223.32,21.22192509]
[1733160807020,30.3307,223.49,223.34,21.22192509]
[1733160807216,30.3307,223.49,223.36,21.22192509]
[1733160807515,20.0,223.46,223.32,21.22192509]
[1733160808228,20.0,223.46,223.33,23.776884]
[1733160809407,20.0,223.46,223.26,0.89293216]
[1733160809408,20.0,223.46,223.31,23.776884]
[1733160809740,20.0,223.46,223.28,26.22192509]
[1733160809936,20.0,223.46,223.28,21.22192509]
[1733160811307,12.8813,223.45,223.26,21.22192509]
[1733160811515,20.0,223.42,223.26,21.22192509]
[1733160812652,20.0,223.42,223.24,21.22192509]
[1733160813544,32.9041,223.41,223.24,21.22192509]
[1733160813939,32.9041,223.41,223.25,23.776884]
[1733160814333,20.0,223.38,223.24,21.22192509]
[1733160814526,13.0454,223.4,223.23,23.776884]
[1733160814732,13.0454,223.4,223.21,23.776884]
[1733160814950,13.0454,223.4,223.23,23.776884]
[1733160815446,13.0454,223.4,223.24,21.22192509]
[1733160815647,13.0454,223.4,223.23,23.776884]
[1733160816042,13.0454,223.4,223.24,21.22192509]
[1733160816354,13.0454,223.4,223.26,21.22192509]
[1733160816537,13.0454,223.4,223.3,21.22192509]
[1733160817144,13.0454,223.4,223.31,23.776884]
[1733160818644,13.0454,223.4,223.2,0.5334242]
[1733160818854,13.0454,223.4,223.23,21.22192509]
[1733160819054,13.0454,223.4,223.25,21.22192509]
[1733160820050,13.0454,223.4,223.27,21.22192509]
[1733160820354,13.0454,223.4,223.28,23.776884]
[1733160821570,13.0454,223.4,223.29,21.22192509]
[1733160821869,32.9041,223.41,223.28,23.776884]
[1733160821870,32.9041,223.41,223.35,21.22192509]
[1733160822065,32.9041,223.41,223.36,23.776884]
[1733160822858,32.9041,223.41,223.29,23.776884]
[1733160823094,32.9041,223.41,223.25,21.22192509]
[1733160823254,32.9041,223.41,223.23,41.22192509]
[1733160823563,32.9041,223.41,223.25,21.22192509]
[1733160825131,32.9041,223.41,223.28,23.776884]
[1733160825830,32.9041,223.41,223.3,23.776884]
[1733160826148,32.9041,223.41,223.32,23.776884]
[1733160826640,26.99901853,223.41,223.31,23.776884]
[1733160826843,12.0503,223.4,223.18,5.0]
[1733160827157,12.0503,223.4,223.14,107.80769231]
[1733160827454,12.0503,223.34,223.14,107.80769231]
[1733160827831,20.0,223.31,223.14,107.80769231]
[1733160829036,20.0,223.23,223.14,107.80769231]
[1733160829656,31.3039,223.22,223.14,107.80769231]
[1733160835139,20.0,223.18,223.14,27.80779231]
[1733160837464,12.4399,223.21,223.14,27.80779231]
[1733160838350,20.0,223.18,223.04,107.80769231]
[1733160839761,20.0,223.14,223.04,107.80769231]
[1733160840362,33.031,223.13,223.04,107.80769231]
[1733160840569,20.0,223.1,223.04,107.80769231]
[1733160840868,33.031,223.13,223.04,107.80769231]
[1733160841050,20.0,223.1,223.04,107.80769231]
[1733160841453,33.031,223.13,223.04,107.80769231]
[1733160841772,35.92045527,223.13,223.04,107.80769231]
[1733160841960,33.031,223.13,223.04,107.80769231]
[1733160844151,20.0,223.14,223.04,107.80769231]
[1733160844367,12.1076,223.17,223.04,107.80769231]
[1733160844550,12.1076,223.17,223.05,24.6709598]
[1733160844753,15.85869684,223.22,223.05,59.16945017]
[1733160845486,15.85869684,223.22,223.05,24.6709598]
[1733160845656,13.0831,223.22,223.05,24.6709598]
[1733160845853,13.0831,223.22,223.07,37.206884]
[1733160846073,13.0831,223.22,223.09,23.776884]
[1733160846286,32.2833,223.25,223.11,23.776884]
[1733160846451,32.2833,223.25,223.1,23.776884]
[1733160846654,32.2833,223.25,223.12,23.776884]
[1733160847174,15.17354228,223.27,223.12,23.776884]
[1733160847382,12.348,223.27,223.12,23.776884]
[1733160847878,12.348,223.27,223.12,58.27537437]
[1733160848175,30.2559,223.31,223.14,23.776884]
[1733160848563,33.11374476,223.31,223.07,25.0]
[1733160848762,33.11374476,223.31,223.04,107.80769231]
[1733160848963,20.0,223.27,223.04,107.80769231]
[1733160849378,32.6604,223.26,223.04,107.80769231]